Cogmind - Beta 14 @@@ ROGUE MODE // 2024.11.26 @ 12:19:45 Player: Tereza Result: Destroyed by G-73 Enforcer with Phase Gun Performance ------------- Evolutions (7) 3500 Regions Visited (26) 5200 Robots Destroyed (106) 530 Value Destroyed (4645) 4645 Prototype IDs (42) 840 Alien Tech Used (3) 600 Bonus (5775) 5775 TOTAL SCORE: 21090 Bonus ------- Triggered Max Security 1000 High Alert Combat Kills 1437 Follower Combat Kills 276 Entered Garrisons 200 Entered DSFs 500 Aligned with FarCom 300 Acquired ECA 300 Met Zhirov 300 Met Warlord at Base 500 MAIN.C Attacked Warlord 500 Scanned by Researcher 500 Friendly Fire -38 Cogmind --------- Core Integrity 0/1300 Matter 165/300 Energy 100/100 System Corruption 21% Temperature Cool (0) Movement Core (50) Location -3/Testing Parts ------- > --- POWER (1) -------- (None) > --- PROPULSION (4) --- (None) > --- UTILITY (14) ----- Advanced Melee Analysis Suite Makeshift Hacking Suite Advanced Hacking Suite > --- WEAPON (2) ------- (None) > --- INVENTORY (5) ---- Encrypted Comm Array Peak State ------------ > --- POWER ------------ Micro Fission Core > --- PROPULSION ------- Nuclear Pulse Array Nuclear Pulse Array > --- UTILITY ---------- Small Storage Unit Advanced Signal Interpreter Advanced Terrain Scanner Advanced Terrain Scan Processor Improved Melee Analysis Suite Advanced Melee Analysis Suite Improved Reaction Control System Hacking Suite Hacking Suite Hacking Suite > --- WEAPON ----------- Smartbomb Launcher > --- INVENTORY -------- Light Nuclear Core Field Propulsion Drive Encrypted Comm Array Enhanced Gauss Cannon Field Lobotomy Kit Makeshift Sword [Rating: 83] Favorites ----------- Power Improved Ion Engine Engine Improved Ion Engine Power Core Light Nuclear Core Reactor Micro Antimatter Reactor Propulsion Light Treads Treads Light Treads Wheel Compact Wheel Flight Unit Improved VTOL Module Utility Hacking Suite Device Cooling System Storage Huge Storage Unit Processor Advanced Targeting Computer Hackware Hacking Suite Protection Hardened Medium Armor Plating Weapon Light Assault Rifle Energy Gun Particle Gun Energy Cannon Heavy Particle Cannon Ballistic Gun Light Assault Rifle Ballistic Cannon Light Cannon Launcher Mini Grenade Launcher Special Weapon Mining Laser Impact Weapon Great Maul Slashing Weapon Makeshift Sword Build | -11 -10 -10 -10 -9 -8 -8 -8 -8 -8 -8 -6 -6 -5 -5 -5 -5 -5 -5 -4 -4 -4 -4 -4 -3 -3 -3 ------- Run | Yrd Mat Min Exi Min Mat Gar Mat Sto Rec Scr Fac DSF Fac Was Fac Upp Upp War Pro Fac Upp Upp Zhi Pro Res Tes Slots Evolved 14 | . . . . . 4 . . . . . 4 . 2 . . . . . . 2 . . . . 2 . Power . | . . . . . . . . . . . . . . . . . . . . . . . . . . . Propulsion 2 | . . . . . 1 . . . . . 1 . . . . . . . . . . . . . . . Utility 12 | . . . . . 3 . . . . . 3 . 2 . . . . . . 2 . . . . 2 . Weapon . | . . . . . . . . . . . . . . . . . . . . . . . . . . . Parts Attached 159 | 6 7 1 . 3 8 39 17 6 2 2 9 4 12 1 5 3 1 . 3 7 1 1 2 6 1 12 Power 17 | 1 1 . . 1 1 5 1 1 . . . 2 2 . . . . . . . . . . . . 2 Engine 5 | 1 1 . . 1 1 . 1 . . . . . . . . . . . . . . . . . . . Core 11 | . . . . . . 5 . 1 . . . 2 2 . . . . . . . . . . . . 1 Reactor 1 | . . . . . . . . . . . . . . . . . . . . . . . . . . 1 Propulsion 41 | 2 . . . . 4 12 4 2 1 1 3 1 1 . 1 . . . 1 . . . . 2 . 6 Treads 21 | 2 . . . . 4 12 1 1 . 1 . . . . . . . . . . . . . . . . Leg . | . . . . . . . . . . . . . . . . . . . . . . . . . . . Wheel 3 | . . . . . . . 2 . 1 . . . . . . . . . . . . . . . . . Hover . | . . . . . . . . . . . . . . . . . . . . . . . . . . . Flight 17 | . . . . . . . 1 1 . . 3 1 1 . 1 . . . 1 . . . . 2 . 6 Utility 39 | 1 4 1 . . 3 4 4 . . 1 5 . 5 1 2 . . . . 3 1 1 2 . . 1 Device 8 | . 2 . . . . 1 . . . . 1 . 1 1 . . . . . 1 . . . . . 1 Storage 6 | 1 2 1 . . . . 1 . . . . . . . 1 . . . . . . . . . . . Processor 9 | . . . . . 1 1 . . . . 3 . 3 . . . . . . 1 . . . . . . Hackware 9 | . . . . . 1 . 1 . . . 1 . 1 . 1 . . . . 1 1 1 1 . . . Protection 7 | . . . . . 1 2 2 . . 1 . . . . . . . . . . . . 1 . . . Artifact . | . . . . . . . . . . . . . . . . . . . . . . . . . . . Weapon 62 | 2 2 . . 2 . 18 8 3 1 . 1 1 4 . 2 3 1 . 2 4 . . . 4 1 3 Energy Gun 7 | 2 . . . 1 . 3 1 . . . . . . . . . . . . . . . . . . . Energy Cannon 3 | . . . . . . 3 . . . . . . . . . . . . . . . . . . . . Ballistic Gun 16 | . 1 . . 1 . 7 4 2 1 . . . . . . . . . . . . . . . . . Ballistic Cannon 9 | . 1 . . . . . . . . . . 1 3 . . 1 . . . 1 . . . 1 1 . Launcher 14 | . . . . . . 5 3 . . . 1 . 1 . . 1 1 . . . . . . . . 2 Special Weapon 7 | . . . . . . . . 1 . . . . . . . . . . . 2 . . . 3 . 1 Impact Weapon 3 | . . . . . . . . . . . . . . . 2 1 . . . . . . . . . . Slashing Weapon 3 | . . . . . . . . . . . . . . . . . . . 2 1 . . . . . . Piercing Weapon . | . . . . . . . . . . . . . . . . . . . . . . . . . . . Special Melee Weapon . | . . . . . . . . . . . . . . . . . . . . . . . . . . . Unidentified Prototypes 11 | . . . . . . . 1 2 . . 1 . . . . . . . . 1 . . 2 1 . 3 Parts Lost 61 | . . . . 1 1 21 9 1 1 . . 1 . . . . 3 . 3 2 . 1 . 4 2 11 Power 7 | . . . . . . 2 2 . . . . . . . . . . . 1 . . . . . . 2 Propulsion 22 | . . . . . . 9 4 . 1 . . . . . . . . . 2 1 . . . . 1 4 Utility 18 | . . . . . 1 3 2 . . . . 1 . . . . 2 . . 1 . 1 . 3 . 4 Weapon 14 | . . . . 1 . 7 1 1 . . . . . . . . 1 . . . . . . 1 1 1 Highest Loss Streak 8 | . . . . 1 1 4 4 1 1 . . 1 . . . . 3 . 2 1 . 1 . 3 2 8 To Critical Strikes . | . . . . . . . . . . . . . . . . . . . . . . . . . . . Average Slot Usage (%) 86 | . 98 100 100 100 87 87 74 93 98 100 81 82 79 88 85 84 85 68 62 46 51 48 54 46 38 38 Engine 5 | . 14 14 14 14 9 1 1 . . . . . . . . . . . . . . . . . . . Core 3 | . . . . . . 7 1 4 9 9 6 6 5 5 5 5 5 5 2 . . . . . . . Treads 17 | . 28 28 28 28 26 23 15 12 9 9 . . . . . . . . . . . . . . . . Wheel 1 | . . . . . . . 3 9 7 9 . . . . . . . . . . . . . . . . Flight 3 | . . . . . . . . 5 9 9 25 22 16 17 11 11 11 11 7 . . . . 7 3 7 Device 5 | . 12 14 14 14 . 4 . . . . . 6 5 11 11 11 9 . . . . . . . . . Storage 8 | . 14 14 14 14 9 9 9 9 9 9 . . . . . 5 5 5 5 1 . . . . . . Processor 9 | . . . . . 8 9 9 9 9 9 16 26 32 35 32 23 23 23 23 26 26 26 26 15 14 11 Hackware 7 | . . . . . 6 9 7 9 9 9 10 8 10 11 13 17 17 17 17 14 20 17 23 22 19 16 Protection 4 | . . . . . 8 5 10 18 18 18 12 4 . . . . . . . . . . . . . . Energy Gun 2 | . 5 . . 12 9 2 7 . . . . . . . . . . 3 2 . . . . . . . Energy Cannon 1 | . . . . . . 6 . . . . . . . . . . . . . . . . . . . . Ballistic Gun 8 | . 8 14 14 14 9 8 8 11 13 18 6 4 . . . . . . . . . . . . . . Ballistic Cannon 3 | . 13 14 14 1 . . . . . . . 2 4 5 5 2 4 . . . . . . . 1 . Peak Build Rating 83 | 6 10 12 13 16 28 33 30 31 33 38 55 61 75 72 81 83 82 64 64 46 47 48 60 54 52 83 Average Rating 29 | 4 8 11 12 13 25 28 25 29 31 35 44 54 64 72 78 77 79 63 49 38 46 45 50 45 43 45 On Entrance 40 | . 6 10 12 13 16 28 28 27 31 33 38 55 53 72 72 80 81 61 64 41 41 47 48 54 46 38 Naked Turns . | . . . . . . . . . . . . . . . . . . . . . . . . . . . Heaviest Build 98 | 14 33 93 93 95 98 96 97 60 62 62 62 17 17 17 26 26 26 12 12 12 2 2 2 9 . 8 Greatest Support 76 | 40 40 40 40 40 70 76 68 10 20 16 20 23 23 23 26 26 26 26 26 7 3 3 3 14 14 28 Greatest Overweight (x) 30 | 2 . 2 2 2 2 1 30 5 5 3 6 . . . . . . . 1 3 . . . . . 1 Average Overweight (x) . | . . . 2 2 1 1 3 5 4 3 . . . . . . . . . . . . . . . . Largest Inventory Capacity 25 | 8 15 25 25 25 25 25 25 20 20 20 20 5 5 5 8 8 8 8 8 8 5 5 5 5 5 5 Average Capacity 17 | 7 11 19 25 25 25 25 22 20 20 20 5 5 5 5 5 8 8 8 8 5 5 5 5 5 5 5 Most Carried 25 | 6 15 17 18 25 25 25 25 20 20 20 20 5 5 5 5 8 8 8 8 8 5 5 5 5 5 5 Average Carried 16 | 4 10 15 17 18 24 24 21 19 19 19 5 5 4 5 5 7 7 8 7 5 5 5 4 4 4 3 Final Capacity 25 | 8 15 25 25 25 25 25 20 20 20 20 5 5 5 5 8 8 8 8 8 5 5 5 5 5 5 5 Final Carried 25 | 6 15 17 18 25 25 25 20 19 20 20 5 5 5 5 5 8 8 8 7 5 5 5 5 5 5 1 Class Distribution -------------------- 58% | Mutant 18% | Scavenger-Mutant 16% | Hacker-Mutant 4% | Hacker-Scout Dominant Class ---------------- Mutant | -10/Materials Mutant | -10/Mines Mutant | -10/Exiles Mutant | -9/Mines Mutant | -8/Materials Mutant | -8/Garrison Mutant | -8/Materials Scavenger-Mutant | -8/Storage Scavenger-Mutant | -8/Recycling Mutant | -8/Scraptown Hacker-Sprinter | -6/Factory Hacker-Sprinter | -6/DSF Hacker-Scout | -5/Factory Hacker-Scout | -5/Waste Hacker-Scout | -5/Factory Hacker-Mutant | -5/Upper Caves Hacker-Mutant | -5/Upper Caves Hacker-Mutant | -5/Warlord Hacker-Mutant | -4/Proximity Caves Hacker-Mutant | -4/Factory Hacker-Mutant | -4/Upper Caves Hacker-Mutant | -4/Upper Caves Wizard-Mutant | -4/Zhirov Hacker-Mutant | -3/Proximity Caves Hacker-Mutant | -3/Research Hacker-Mutant | -3/Testing Resources | -11 -10 -10 -10 -9 -8 -8 -8 -8 -8 -8 -6 -6 -5 -5 -5 -5 -5 -5 -4 -4 -4 -4 -4 -3 -3 -3 ----------- Run | Yrd Mat Min Exi Min Mat Gar Mat Sto Rec Scr Fac DSF Fac Was Fac Upp Upp War Pro Fac Upp Upp Zhi Pro Res Tes Matter Collected 3035 | 238 326 45 . 35 70 949 239 34 178 30 . . 279 . 148 33 86 . . 56 111 . 54 . 3 121 Remotely . | . . . . . . . . . . . . . . . . . . . . . . . . . . . Salvage Created 3588 | . 545 39 . 80 79 1730 456 34 178 . . . 77 . . 34 26 . . 51 97 . 122 40 . . Parts 204 | . 43 4 . 5 2 90 29 2 7 . . . 9 . . 5 2 . . 2 1 . . 3 . . Haulers Intercepted 1 | . 1 . . . . . . . . . . . . . . . . . . . . . . . . . Recyclers Shooed 1 | . . . . . . . . . 1 . . . . . . . . . . . . . . . . . Parts Field Recycled . | . . . . . . . . . . . . . . . . . . . . . . . . . . . Retrieved Matter . | . . . . . . . . . . . . . . . . . . . . . . . . . . . Parts Self-Destructed 16 | . . . . . . . . . . . . . . . . 7 5 . . . 1 . . 3 . . Prevented 2 | . . . . . . . . . . . . . . . . . . . . . 1 . . 1 . . Kills | -11 -10 -10 -10 -9 -8 -8 -8 -8 -8 -8 -6 -6 -5 -5 -5 -5 -5 -5 -4 -4 -4 -4 -4 -3 -3 -3 ------- Run | Yrd Mat Min Exi Min Mat Gar Mat Sto Rec Scr Fac DSF Fac Was Fac Upp Upp War Pro Fac Upp Upp Zhi Pro Res Tes Combat Hostiles Destroyed 98 | . 14 5 . 2 2 48 9 1 1 . . . 5 . . 5 4 . . 1 . . . 1 . . Melee 3 | . . . . . . . . . . . . . . . . 1 . . . 1 . . . 1 . . Guns 37 | . 3 1 . 1 2 23 5 1 1 . . . . . . . . . . . . . . . . . Cannons 28 | . 11 4 . 1 . 11 . . . . . . 1 . . . . . . . . . . . . . AOE 30 | . . . . . . 14 4 . . . . . 4 . . 4 4 . . . . . . . . . Classes Destroyed 17 | . 7 2 . . . 6 2 . . . . . . . . . . . . . . . . . . . Worker 4 | . 1 . . . . . 2 . . . . . 1 . . . . . . . . . . . . . Builder 3 | . . . . . . . 3 . . . . . . . . . . . . . . . . . . . Hauler 1 | . 1 . . . . . . . . . . . . . . . . . . . . . . . . . Recycler 3 | . 1 . . . . . . . 2 . . . . . . . . . . . . . . . . . Mechanic 1 | . . . . . . . 1 . . . . . . . . . . . . . . . . . . . Operator 1 | . 1 . . . . . . . . . . . . . . . . . . . . . . . . . Watcher 5 | . 3 . . . 1 . . . . . . . 1 . . . . . . . . . . . . . Swarmer 25 | . 3 3 . . 1 3 . . . . . . 5 . . 5 4 . . . . . . 1 . . Cutter 2 | . . . . . . 2 . . . . . . . . . . . . . . . . . . . . Grunt 51 | . 11 . . 2 1 30 7 . . . . . . . . . . . . . . . . . . . Brawler 5 | . . . . . . 4 1 . . . . . . . . . . . . . . . . . . . Duelist 1 | . . . . . . 1 . . . . . . . . . . . . . . . . . . . . Sentry 8 | . . . . . . 5 1 1 1 . . . . . . . . . . . . . . . . . Demolisher 1 | . . 1 . . . . . . . . . . . . . . . . . . . . . . . . Hunter 1 | . . . . . . 1 . . . . . . . . . . . . . . . . . . . . Programmer 3 | . . . . . . 2 . . . . . . . . . . . . . 1 . . . . . . Packrat 1 | . . . . . . . . . . . . . . . . . . . . . 1 . . . . . Assembled 1 | . . 1 . . . . . . . . . . . . . . . . . . . . . . . . Best Kill Streak 8 | . 7 3 . 2 1 6 8 1 2 . . . 5 . . 5 4 . . 1 . . . 1 . . Combat Bots Only 6 | . 6 3 . 2 1 6 5 1 1 . . . 5 . . 5 4 . . 1 . . . 1 . . Max Kills in Single Turn 4 | . 2 1 . 1 1 4 4 1 1 . . . 4 . . 3 2 . . 1 1 . . 1 . . Gunslinging . | . . . . . . . . . . . . . . . . . . . . . . . . . . . Exploded 4 | . . . . . . 3 1 . . . . . 4 . . 3 2 . . . . . . . . . Melee 1 | . . . . . . . . . . . . . . . . 1 . . . 1 . . . 1 . . Uniques/NPCs Destroyed . | . . . . . . . . . . . . . . . . . . . . . . . . . . . Combat | -11 -10 -10 -10 -9 -8 -8 -8 -8 -8 -8 -6 -6 -5 -5 -5 -5 -5 -5 -4 -4 -4 -4 -4 -3 -3 -3 -------- Run | Yrd Mat Min Exi Min Mat Gar Mat Sto Rec Scr Fac DSF Fac Was Fac Upp Upp War Pro Fac Upp Upp Zhi Pro Res Tes Hostile Shots Fired 863 | . 45 15 . 11 20 254 65 8 6 . . 10 7 . 4 17 55 . 42 82 4 7 . 31 26 154 Missed 328 | . 15 4 . 2 5 69 19 2 . . . 3 5 . 3 9 36 . 28 30 1 2 . 17 13 65 Damage Taken 9784 | . 508 82 . 136 253 3038 777 231 83 . . 243 30 . 12 130 382 . 316 1033 63 80 . 316 305 1766 Core 3196 | . 44 30 . 11 . 414 43 50 . . . 42 . . . 14 47 . 85 806 63 48 . 197 187 1115 Absorbed by Shields 393 | . . . . . . . . . . . . . . . . . . . . . . . . . . 393 Redirected to Shielding 33 | . . . . . . 33 . . . . . . . . . . . . . . . . . . . . Core Remaining (%) 59 | 100 . . . 66 . . . . . 7 . 95 . . . . . . 85 . . . . 2 . . Volleys Fired 297 | . 43 11 . 6 10 140 25 13 5 . 2 . 5 . 13 3 4 . . 4 . . . 3 7 3 Largest 2 | . 2 2 . 2 2 2 2 2 2 . 1 . 1 . 1 1 1 . . 1 . . . 1 1 1 Hottest 140 | . 90 55 . 85 88 140 101 125 50 . 25 . 57 . 57 57 57 . . 66 . . . 57 57 30 Shots Fired 522 | . 86 22 . 12 20 264 45 20 10 . 2 . 5 . 12 3 4 . . 4 . . . 3 7 3 Gun 337 | . 44 11 . 11 20 188 39 12 10 . 2 . . . . . . . . . . . . . . . Cannon 144 | . 42 11 . 1 . 62 . . . . . . 4 . 12 1 1 . . 2 . . . 1 7 . Launcher 28 | . . . . . . 14 6 . . . . . 1 . . 2 3 . . . . . . . . 2 Special 13 | . . . . . . . . 8 . . . . . . . . . . . 2 . . . 2 . 1 Kinetic 308 | . 58 22 . 7 10 141 21 9 10 . 2 . 4 . 12 1 1 . . 2 . . . 1 7 . Thermal 171 | . 27 . . 5 10 100 18 11 . . . . . . . . . . . . . . . . . . Explosive 28 | . . . . . . 14 6 . . . . . 1 . . 2 3 . . . . . . . . 2 Electromagnetic 10 | . 1 . . . . 9 . . . . . . . . . . . . . . . . . . . . Robot Hit Streak 24 | . 16 11 . 6 6 20 13 24 4 . . . 3 . 1 4 3 . . 5 . . . 7 8 6 Robot Miss Streak 5 | . 3 4 . 1 3 5 3 2 2 . . . 2 . 2 . 1 . . . . . . . 1 . Penetration Max . | . . . . . . . . . . . . . . . . . . . . . . . . . . . Secondary Targets 4 | . . . . . . 3 1 . . . . . . . . . . . . . . . . . . . Max Gunslinging Chain 1 | . . . . . . 1 1 . . . . . . . . . . . . . . . . . . . Shots Hit Robots 344 | . 60 11 . 10 14 169 32 7 7 . . . 3 . 1 4 3 . . 9 1 . 1 4 5 3 Core Hits 266 | . 32 6 . 4 5 141 37 2 6 . . . 7 . . 4 7 . . 2 1 . 1 1 1 9 Critical Kills . | . . . . . . . . . . . . . . . . . . . . . . . . . . . Critical Parts Destroyed 1 | . . . . . . 1 . . . . . . . . . . . . . . . . . . . . Critical Strikes 16 | . 7 1 . . . 1 . 1 . . . . 1 . . . . . . 4 . . . . 1 . Burn 6 | . 5 . . . . . . 1 . . . . . . . . . . . . . . . . . . Destroy 1 | . . . . . . 1 . . . . . . . . . . . . . . . . . . . . Blast 5 | . 2 1 . . . . . . . . . . 1 . . . . . . . . . . . 1 . Sever 4 | . . . . . . . . . . . . . . . . . . . . 4 . . . . . . Melee Attacks 28 | . . . . . . . . . . . . . . . 4 1 . . 6 8 1 4 1 3 . . Impact 5 | . . . . . . . . . . . . . . . 4 1 . . . . . . . . . . Slashing 23 | . . . . . . . . . . . . . . . . . . . 6 8 1 4 1 3 . . Piercing . | . . . . . . . . . . . . . . . . . . . . . . . . . . . Sneak Attacks 1 | . . . . . . . . . . . . . . . . . . . . . 1 . . . . . Combat Hostiles . | . . . . . . . . . . . . . . . . . . . . . . . . . . . Follow-up Attacks . | . . . . . . . . . . . . . . . . . . . . . . . . . . . Damage Inflicted 11389 | . 1054 165 . 124 223 4410 1189 155 148 . . . 445 . 29 653 891 . . 270 83 . 78 81 195 1196 Guns 3396 | . 342 35 . 108 223 2034 351 155 148 . . . . . . . . . . . . . . . . . Cannons 1989 | . 592 130 . 16 . 895 . . . . . . 105 . 29 31 . . . . . . . . 191 . Explosions 5412 | . 118 . . . . 1481 826 . . . . . 340 . . 560 891 . . . . . . . . 1196 Melee 574 | . . . . . . . . . . . . . . . . 62 . . . 270 83 . 78 81 . . Ramming 18 | . 2 . . . . . 12 . . . . . . . . . . . . . . . . . 4 . Kinetic 3030 | . 674 165 . 55 120 1276 131 105 148 . . . 105 . 29 31 . . . . . . . . 191 . Thermal 2344 | . 378 . . 69 103 1524 220 50 . . . . . . . . . . . . . . . . . . Explosive 5294 | . . . . . . 1481 826 . . . . . 340 . . 560 891 . . . . . . . . 1196 Electromagnetic 129 | . . . . . . 129 . . . . . . . . . . . . . . . . . . . . Impact 62 | . . . . . . . . . . . . . . . . 62 . . . . . . . . . . Slashing 512 | . . . . . . . . . . . . . . . . . . . . 270 83 . 78 81 . . Piercing . | . . . . . . . . . . . . . . . . . . . . . . . . . . . Highest Corruption 21 | . . . . . . . 1 3 3 3 . . . 5 5 5 5 5 . 2 2 2 2 3 5 21 Average Corruption 3 | . . . . . . . 1 2 3 3 . . . 5 5 5 5 5 . 1 2 2 2 2 4 7 Corruption Purged . | . . . . . . . . . . . . . . . . . . . . . . . . . . . Corruption Blocked . | . . . . . . . . . . . . . . . . . . . . . . . . . . . Effects 66 | . . . . . . . 2 8 11 . . . . 2 7 4 4 . . 6 2 3 1 6 . 10 Message Errors 17 | . . . . . . . 1 3 2 . . . . . 3 2 1 . . 1 . . . 1 . 3 Matter Fused 20 | . . . . . . . . 3 5 . . . . 1 1 . 2 . . 1 . 1 1 2 . 3 Heat Flow Errors 4 | . . . . . . . . . 2 . . . . . . . . . . 1 . . . 1 . . Energy Discharges 9 | . . . . . . . 1 . 1 . . . . . 1 2 . . . 1 1 1 . . . 1 Parts Rejected 2 | . . . . . . . . . . . . . . 1 . . . . . . . . . . . 1 Parts Fused 1 | . . . . . . . . . . . . . . . . . . . . 1 . . . . . . Data Loss (minor) 5 | . . . . . . . . . . . . . . . . . 1 . . 1 1 . . 2 . . Data Loss (major) 3 | . . . . . . . . . 1 . . . . . 1 . . . . . . . . . . 1 Alerts 3 | . . . . . . . . 2 . . . . . . . . . . . . . 1 . . . . Misdirections 1 | . . . . . . . . . . . . . . . . . . . . . . . . . . 1 Weapon Failures 1 | . . . . . . . . . . . . . . . 1 . . . . . . . . . . . Overload Shots . | . . . . . . . . . . . . . . . . . . . . . . . . . . . Overflow Damage 212 | . 19 . . . . 12 . . . . . . 21 . . 128 . . . . . . . . 32 . Projectiles 38 | . . . . . . . . . . . . . . . . 6 . . . . . . . . 32 . Explosions 114 | . 19 . . . . 12 . . . . . . 21 . . 62 . . . . . . . . . . Melee 60 | . . . . . . . . . . . . . . . . 60 . . . . . . . . . . Knockbacks 10 | . 5 . . . . . . . . . . . . . . 1 . . . . . . . . 4 . Impact . | . . . . . . . . . . . . . . . . . . . . . . . . . . . Kinetic 10 | . 5 . . . . . . . . . . . . . . 1 . . . . . . . . 4 . Secondary . | . . . . . . . . . . . . . . . . . . . . . . . . . . . Self-Inflicted Damage 406 | . 134 . . . . 79 6 . . . . . . . . . 36 . . . . . . . 2 149 Shots 7 | . 2 . . . . 2 . . . . . . . . . . 1 . . . . . . . . 2 Rammed 3 | . 1 . . . . . 1 . . . . . . . . . . . . . . . . . 1 . Targets Rammed 3 | . 1 . . . . . 1 . . . . . . . . . . . . . . . . . 1 . Kicked . | . . . . . . . . . . . . . . . . . . . . . . . . . . . Crushed . | . . . . . . . . . . . . . . . . . . . . . . . . . . . Highest Temperature 319 | . 264 . . 11 150 173 319 88 251 . 12 . 3 . 4 . 9 . . 118 . . . 160 . . Average Temperature 55 | . 92 . . 5 56 41 86 28 73 . 9 . 3 . 3 . 6 . . 75 . . . 101 . . Received Heat Transfer 2588 | . 195 . . 75 66 1422 405 18 27 . . . . . . . 117 . 18 105 9 12 . . . 119 Siege Activations . | . . . . . . . . . . . . . . . . . . . . . . . . . . . Robots Corrupted . | . . . . . . . . . . . . . . . . . . . . . . . . . . . Combat Hostiles . | . . . . . . . . . . . . . . . . . . . . . . . . . . . Parts Fried . | . . . . . . . . . . . . . . . . . . . . . . . . . . . Impact Corruptions 2 | . . . . . . . . . . . . . . . . 2 . . . . . . . . . . Robots Melted . | . . . . . . . . . . . . . . . . . . . . . . . . . . . Combat Hostiles . | . . . . . . . . . . . . . . . . . . . . . . . . . . . Parts Melted 5 | . 2 . . . 1 . 1 1 . . . . . . . . . . . . . . . . . . Heat Transferred 4459 | . 1260 . . 148 222 2126 518 185 . . . . . . . . . . . . . . . . . . Parts Sabotaged . | . . . . . . . . . . . . . . . . . . . . . . . . . . . Parts Stolen . | . . . . . . . . . . . . . . . . . . . . . . . . . . . Parts Stripped . | . . . . . . . . . . . . . . . . . . . . . . . . . . . Power Chain Reactions . | . . . . . . . . . . . . . . . . . . . . . . . . . . . Alert | -11 -10 -10 -10 -9 -8 -8 -8 -8 -8 -8 -6 -6 -5 -5 -5 -5 -5 -5 -4 -4 -4 -4 -4 -3 -3 -3 ------- Run | Yrd Mat Min Exi Min Mat Gar Mat Sto Rec Scr Fac DSF Fac Was Fac Upp Upp War Pro Fac Upp Upp Zhi Pro Res Tes Peak Influence 2321 | . 281 137 . 63 153 2321 1261 587 170 . 15 10 209 103 192 . . . . 432 . . . . 159 2079 Initial 1131 | . . 46 . . . 5 1131 507 150 . . 10 . 73 72 . . . . 94 . . . . 159 88 Average 475 | . 154 23 . 26 84 1063 1207 547 133 . . 5 62 88 142 . . . . 231 . . . . 149 1695 Maximum Alert Level 5 | . 1 . . . . 5 4 2 . . . . 1 . . . . . . 2 . . . . . 5 Low Security (%) 56 | 100 66 100 . 100 100 12 . . 100 . 100 100 80 100 100 . . . . 45 . . . . 100 . Level 1 7 | . 33 . . . . 4 . 3 . . . . 19 . . . . . . 44 . . . . . . Level 2 8 | . . . . . . 16 . 96 . . . . . . . . . . . 9 . . . . . . Level 3 4 | . . . . . . 14 5 . . . . . . . . . . . . . . . . . . . Level 4 14 | . . . . . . 31 94 . . . . . . . . . . . . . . . . . . . Level 5 5 | . . . . . . 20 . . . . . . . . . . . . . . . . . . . . High Security . | . . . . . . . . . . . . . . . . . . . . . . . . . . . Max Security 2 | . . . . . . . . . . . . . . . . . . . . . . . . . . 99 Squads Dispatched 25 | . 2 . . . 1 . 1 . . . . 1 . . 2 . . . . 4 . . . . 1 13 Investigation 4 | . 1 . . . . . . . . . . . . . 2 . . . . 1 . . . . . . Extermination . | . . . . . . . . . . . . . . . . . . . . . . . . . . . Reinforcement 6 | . 1 . . . . . . . . . . 1 . . . . . . . 3 . . . . 1 . Assault 13 | . . . . . . . 1 . . . . . . . . . . . . . . . . . . 12 Garrison 2 | . . . . . 1 . . . . . . . . . . . . . . . . . . . . 1 Intercept . | . . . . . . . . . . . . . . . . . . . . . . . . . . . Searches Triggered 1 | . . . . . . . . . . . . . . . . . . . . 1 . . . . . . Construction Impeded . | . . . . . . . . . . . . . . . . . . . . . . . . . . . Haulers Reinforced . | . . . . . . . . . . . . . . . . . . . . . . . . . . . Active Scanning Responses . | . . . . . . . . . . . . . . . . . . . . . . . . . . . Cargo Convoy Interrupts . | . . . . . . . . . . . . . . . . . . . . . . . . . . . Stealth | -11 -10 -10 -10 -9 -8 -8 -8 -8 -8 -8 -6 -6 -5 -5 -5 -5 -5 -5 -4 -4 -4 -4 -4 -3 -3 -3 --------- Run | Yrd Mat Min Exi Min Mat Gar Mat Sto Rec Scr Fac DSF Fac Was Fac Upp Upp War Pro Fac Upp Upp Zhi Pro Res Tes Distress Signals 9 | . 1 . . . . . 2 . . . . . . . . . . . . 1 . . . 1 2 2 Communications Jammed . | . . . . . . . . . . . . . . . . . . . . . . . . . . . Distress Signals . | . . . . . . . . . . . . . . . . . . . . . . . . . . . Times Spotted 275 | . 22 6 . 3 10 55 19 2 1 . . 4 6 6 6 7 21 . 13 16 3 5 . 10 4 56 Peak Tracking Total 43 | . 5 3 . 2 4 8 7 1 1 . . 4 5 6 4 5 15 . 5 10 3 4 . 6 6 43 Tactical Retreats 35 | . 1 1 . . . 4 1 . . . . . . . 2 3 3 . 5 6 . 3 . 2 . 4 Traps | -11 -10 -10 -10 -9 -8 -8 -8 -8 -8 -8 -6 -6 -5 -5 -5 -5 -5 -5 -4 -4 -4 -4 -4 -3 -3 -3 ------- Run | Yrd Mat Min Exi Min Mat Gar Mat Sto Rec Scr Fac DSF Fac Was Fac Upp Upp War Pro Fac Upp Upp Zhi Pro Res Tes Traps Triggered 22 | . 1 . . . . 13 . 3 . . 3 . 2 . . . . . . . . . . . . . Indirectly . | . . . . . . . . . . . . . . . . . . . . . . . . . . . Trap Hack Attempts . | . . . . . . . . . . . . . . . . . . . . . . . . . . . Triggered . | . . . . . . . . . . . . . . . . . . . . . . . . . . . Disarmed . | . . . . . . . . . . . . . . . . . . . . . . . . . . . Reprogrammed . | . . . . . . . . . . . . . . . . . . . . . . . . . . . Reused . | . . . . . . . . . . . . . . . . . . . . . . . . . . . Traps Extracted . | . . . . . . . . . . . . . . . . . . . . . . . . . . . Installed . | . . . . . . . . . . . . . . . . . . . . . . . . . . . Triggered 7 | . . . . . . . . . . . . . . . . 3 . 3 . . 1 . . . . . Most Traps Carried 1 | . . . . . . . . . . . . . . . . 1 1 1 1 1 . . . . . . Machines | -11 -10 -10 -10 -9 -8 -8 -8 -8 -8 -8 -6 -6 -5 -5 -5 -5 -5 -5 -4 -4 -4 -4 -4 -3 -3 -3 ---------- Run | Yrd Mat Min Exi Min Mat Gar Mat Sto Rec Scr Fac DSF Fac Was Fac Upp Upp War Pro Fac Upp Upp Zhi Pro Res Tes Machines Disabled 25 | . 6 . . . 2 8 2 2 . . . . 2 . 1 . . . . . . . . 1 . 1 Max in Single Turn 6 | . 6 . . . . 2 1 1 . . . . 2 . 1 . . . . . . . . 1 . 1 Garrison Relay 3 | . . . . . . 3 . . . . . . . . . . . . . . . . . . . . Phase Generator 1 | . . . . . . 1 . . . . . . . . . . . . . . . . . . . . Machines Repaired . | . . . . . . . . . . . . . . . . . . . . . . . . . . . Machines Dismantled . | . . . . . . . . . . . . . . . . . . . . . . . . . . . Machines Sabotaged . | . . . . . . . . . . . . . . . . . . . . . . . . . . . Overloaded Fab Kills . | . . . . . . . . . . . . . . . . . . . . . . . . . . . Hacking | -11 -10 -10 -10 -9 -8 -8 -8 -8 -8 -8 -6 -6 -5 -5 -5 -5 -5 -5 -4 -4 -4 -4 -4 -3 -3 -3 --------- Run | Yrd Mat Min Exi Min Mat Gar Mat Sto Rec Scr Fac DSF Fac Was Fac Upp Upp War Pro Fac Upp Upp Zhi Pro Res Tes Machines Accessed 47 | . 3 1 2 . 3 3 1 1 3 . 2 . 7 . 2 1 . 6 . 2 . 1 7 1 1 . Terminals 29 | . 3 1 . . 2 3 1 1 3 . 2 . 6 . 2 1 . . . 2 . 1 . . 1 . Fabricators . | . . . . . . . . . . . . . . . . . . . . . . . . . . . Repair Stations . | . . . . . . . . . . . . . . . . . . . . . . . . . . . Recycling Units . | . . . . . . . . . . . . . . . . . . . . . . . . . . . Scanalyzers . | . . . . . . . . . . . . . . . . . . . . . . . . . . . Garrison Access 2 | . . . . . 1 . . . . . . . 1 . . . . . . . . . . . . . Total Hacks 121 | . 6 3 5 . 4 9 1 1 6 . 4 . 12 . 6 1 . 6 . 7 . 2 46 1 1 . Successful 82 | . 2 2 5 . 2 2 1 1 2 . 2 . 4 . . 1 . 6 . 3 . 2 46 1 . . Failed 37 | . 3 1 . . 2 7 . . 4 . 2 . 8 . 6 . . . . 3 . . . . 1 . Catastrophic 14 | . 1 . . . 2 3 . . 1 . . . 4 . 2 . . . . . . . . . 1 . Database Lockouts 2 | . 1 . . . . . . . . . . . . . . . . . . 1 . . . . . . Manual 43 | . 6 4 1 . 3 . 3 2 3 . . . 9 . 6 . . . . 5 . . . . 1 . Terminals 60 | . 6 3 . . 3 9 1 1 6 . 4 . 10 . 6 1 . . . 7 . 2 . . 1 . Fabricators . | . . . . . . . . . . . . . . . . . . . . . . . . . . . Repair Stations . | . . . . . . . . . . . . . . . . . . . . . . . . . . . Recycling Units . | . . . . . . . . . . . . . . . . . . . . . . . . . . . Scanalyzers . | . . . . . . . . . . . . . . . . . . . . . . . . . . . Garrison Access 3 | . . . . . 1 . . . . . . . 2 . . . . . . . . . . . . . Terminal Hacks 79 | . 2 2 5 . 1 2 1 1 2 . 2 . 2 . . 1 . 6 . 3 . 2 46 1 . . Record 49 | . . . 4 . . . . . . . . . . . . 1 . 5 . 2 . 2 34 1 . . Part Schematic 5 | . . . . . . . . . . . . . 1 . . . . . . . . . 4 . . . Robot Analysis 9 | . 1 1 . . 1 . 1 . 1 . . . . . . . . . . . . . 4 . . . Prototype ID Bank 4 | . . . . . . . . . . . . . . . . . . . . . . . 4 . . . Open Door 2 | . . . . . . . . 1 . . . . . . . . . 1 . . . . . . . . Open DSF 3 | . . . . . . . . . . . 2 . 1 . . . . . . . . . . . . . Branch Access Points 1 | . . . . . . . . . . . . . . . . . . . . 1 . . . . . . Emergency Access Points 1 | . . . . . . 1 . . . . . . . . . . . . . . . . . . . . Hauler Manifests 3 | . 1 1 . . . . . . 1 . . . . . . . . . . . . . . . . . Patrol Navigation 1 | . . . . . . 1 . . . . . . . . . . . . . . . . . . . . Derelict Proto ID Bank 1 | . . . 1 . . . . . . . . . . . . . . . . . . . . . . . Fabricator Hacks . | . . . . . . . . . . . . . . . . . . . . . . . . . . . Repair Station Hacks . | . . . . . . . . . . . . . . . . . . . . . . . . . . . Recycling Unit Hacks . | . . . . . . . . . . . . . . . . . . . . . . . . . . . Scanalyzer . | . . . . . . . . . . . . . . . . . . . . . . . . . . . Garrison Access Hacks 1 | . . . . . 1 . . . . . . . . . . . . . . . . . . . . . Unlock Access 1 | . . . . . 1 . . . . . . . . . . . . . . . . . . . . . Unauthorized Hacks 2 | . . . . . . . . . . . . . 2 . . . . . . . . . . . . . Terminals 2 | . . . . . . . . . . . . . 2 . . . . . . . . . . . . . Botnet 2 | . . . . . . . . . . . . . 2 . . . . . . . . . . . . . Fabricators . | . . . . . . . . . . . . . . . . . . . . . . . . . . . Repair Stations . | . . . . . . . . . . . . . . . . . . . . . . . . . . . Recycling Units . | . . . . . . . . . . . . . . . . . . . . . . . . . . . Scanalyzers . | . . . . . . . . . . . . . . . . . . . . . . . . . . . Garrison Access . | . . . . . . . . . . . . . . . . . . . . . . . . . . . Data Cores Recovered . | . . . . . . . . . . . . . . . . . . . . . . . . . . . Used . | . . . . . . . . . . . . . . . . . . . . . . . . . . . Hacking Detections 26 | . 1 1 . . 3 3 1 1 3 . 2 . 7 . 2 . . . . 1 . . . . 1 . Full Trace Events 7 | . . 1 . . . 2 . . 1 . . . . . 2 . . . . 1 . . . . . . Feedback Events . | . . . . . . . . . . . . . . . . . . . . . . . . . . . Feedback Blocked . | . . . . . . . . . . . . . . . . . . . . . . . . . . . Robot Schematics Acquired . | . . . . . . . . . . . . . . . . . . . . . . . . . . . Robots Built . | . . . . . . . . . . . . . . . . . . . . . . . . . . . Authchips . | . . . . . . . . . . . . . . . . . . . . . . . . . . . Time . | . . . . . . . . . . . . . . . . . . . . . . . . . . . Total Robot Build Rating . | . . . . . . . . . . . . . . . . . . . . . . . . . . . Part Schematics Acquired 5 | . . . . . . . . . . . . . 1 . . . . . . . . . 4 . . . Parts Built . | . . . . . . . . . . . . . . . . . . . . . . . . . . . Authchips . | . . . . . . . . . . . . . . . . . . . . . . . . . . . Time . | . . . . . . . . . . . . . . . . . . . . . . . . . . . Total Part Build Rating . | . . . . . . . . . . . . . . . . . . . . . . . . . . . Parts Repaired . | . . . . . . . . . . . . . . . . . . . . . . . . . . . Time . | . . . . . . . . . . . . . . . . . . . . . . . . . . . Parts Recycled . | . . . . . . . . . . . . . . . . . . . . . . . . . . . Recycled Matter . | . . . . . . . . . . . . . . . . . . . . . . . . . . . Retrieved Matter . | . . . . . . . . . . . . . . . . . . . . . . . . . . . Retrieved Components . | . . . . . . . . . . . . . . . . . . . . . . . . . . . Parts Scanalyzed . | . . . . . . . . . . . . . . . . . . . . . . . . . . . Part Schematics Acquired . | . . . . . . . . . . . . . . . . . . . . . . . . . . . Parts Damaged . | . . . . . . . . . . . . . . . . . . . . . . . . . . . Bothacking | -11 -10 -10 -10 -9 -8 -8 -8 -8 -8 -8 -6 -6 -5 -5 -5 -5 -5 -5 -4 -4 -4 -4 -4 -3 -3 -3 ------------ Run | Yrd Mat Min Exi Min Mat Gar Mat Sto Rec Scr Fac DSF Fac Was Fac Upp Upp War Pro Fac Upp Upp Zhi Pro Res Tes Used RIF Installer . | . . . . . . . . . . . . . . . . . . . . . . . . . . . Robots Hacked . | . . . . . . . . . . . . . . . . . . . . . . . . . . . Non-combat . | . . . . . . . . . . . . . . . . . . . . . . . . . . . Combat . | . . . . . . . . . . . . . . . . . . . . . . . . . . . Robot Hacks Applied . | . . . . . . . . . . . . . . . . . . . . . . . . . . . Relay Couplers Released 9 | . . . . . . 9 . . . . . . . . . . . . . . . . . . . . Machine Destruction 9 | . . . . . . 9 . . . . . . . . . . . . . . . . . . . . Fabnet Peak Effective % . | . . . . . . . . . . . . . . . . . . . . . . . . . . . Robots Rewired 1 | . . . . . . 1 . . . . . . . . . . . . . . . . . . . . Allies Hacked 1 | . . . . . . . . . . . . . . . . . . . . . . . . 1 . . Hacks Repelled . | . . . . . . . . . . . . . . . . . . . . . . . . . . . Allies | -11 -10 -10 -10 -9 -8 -8 -8 -8 -8 -8 -6 -6 -5 -5 -5 -5 -5 -5 -4 -4 -4 -4 -4 -3 -3 -3 -------- Run | Yrd Mat Min Exi Min Mat Gar Mat Sto Rec Scr Fac DSF Fac Was Fac Upp Upp War Pro Fac Upp Upp Zhi Pro Res Tes Total Allies 12 | . . 3 . 2 . 1 . . . . . . . . . . . . . 2 . . . 3 . 1 Largest Group 5 | . . 3 3 5 5 1 . . . . . . . . . . . . . 1 . . . 2 . 1 Highest-Rated Group 140 | . . 40 40 81 81 21 . . . . . . . . . . . . . 137 . . . 140 . 64 Highest-Rated Ally 137 | . . 16 16 31 31 21 . . . . . . . . . . . . . 137 . . . 82 . 64 Total Orders . | . . . . . . . . . . . . . . . . . . . . . . . . . . . Ally Attacks 72 | . . . . . 35 7 . . . . . . . . . . . . . 13 . . . 16 . 1 Total Damage 1831 | . . . . . 859 223 . . . . . . . . . . . . . 410 . . . 289 . 50 Kills 13 | . . . . . 5 3 . . . . . . . . . . . . . 4 . . . 1 . . Allies Corrupted 1 | . . . . . . . . . . . . . . . . . . . . . . . . 1 . . Allies Melted 1 | . . . . . . . . . . . . . . . . . . . . . . . . 1 . . Field Lobotomies 5 | . . . . . . . . . . . . . . . . . . . . 2 . . . 2 . 1 Intel | -11 -10 -10 -10 -9 -8 -8 -8 -8 -8 -8 -6 -6 -5 -5 -5 -5 -5 -5 -4 -4 -4 -4 -4 -3 -3 -3 ------- Run | Yrd Mat Min Exi Min Mat Gar Mat Sto Rec Scr Fac DSF Fac Was Fac Upp Upp War Pro Fac Upp Upp Zhi Pro Res Tes Robot Analysis Total 9 | . 1 1 . . 1 . 1 . 1 . . . . . . . . . . . . . 4 . . . Derelict Logs Recovered 4 | . . 1 . . . . . . . . . . . . . . . . 1 . 1 1 . . . . Drone Launches . | . . . . . . . . . . . . . . . . . . . . . . . . . . . Drone Recoveries . | . . . . . . . . . . . . . . . . . . . . . . . . . . . Exploration | -11 -10 -10 -10 -9 -8 -8 -8 -8 -8 -8 -6 -6 -5 -5 -5 -5 -5 -5 -4 -4 -4 -4 -4 -3 -3 -3 ------------- Run | Yrd Mat Min Exi Min Mat Gar Mat Sto Rec Scr Fac DSF Fac Was Fac Upp Upp War Pro Fac Upp Upp Zhi Pro Res Tes Turns Passed 13528 | 82 1280 1450 667 793 717 2822 619 413 468 1034 278 26 259 64 299 196 143 129 271 454 188 228 93 259 73 223 Spaces Moved 10678 | 46 682 655 209 240 282 966 198 199 268 709 455 62 705 169 547 385 353 348 606 716 369 426 168 352 96 467 Core 1848 | 6 . . . . . . 21 . . . 1 . . . . . . . . 584 369 426 168 7 64 202 Treads 3158 | 40 682 655 209 240 282 966 68 . 16 . . . . . . . . . . . . . . . . . Legs . | . . . . . . . . . . . . . . . . . . . . . . . . . . . Wheels 1276 | . . . . . . . 109 199 252 709 7 . . . . . . . . . . . . . . . Hover . | . . . . . . . . . . . . . . . . . . . . . . . . . . . Flight 4396 | . . . . . . . . . . . 447 62 705 169 547 385 353 348 606 132 . . . 345 32 265 Fastest Speed 26 | 50 160 160 320 320 235 232 110 155 145 145 26 26 30 30 30 37 37 37 37 45 50 50 50 40 44 28 Average Speed 110 | 148 160 212 320 320 236 239 261 155 165 145 28 27 30 30 36 37 37 37 41 55 50 50 50 41 49 40 Slowest Speed 1550 | 160 160 320 320 320 320 240 1550 155 400 145 350 30 34 30 37 37 37 37 125 200 50 50 50 50 55 120 Overloaded Moves . | . . . . . . . . . . . . . . . . . . . . . . . . . . . Propulsion Burnouts . | . . . . . . . . . . . . . . . . . . . . . . . . . . . Robots Hopped 18 | . . . . . . . . . . . 5 2 2 . 3 . . . . . . . . . 1 5 Cave-ins Triggered . | . . . . . . . . . . . . . . . . . . . . . . . . . . . Teleports 1 | . . . . . . . . . . . . . . . . . . . . . . . . 1 . . Exploration Rate (%) 50 | 4 97 93 59 59 29 86 30 32 34 54 9 82 18 86 13 49 57 65 79 23 58 68 62 51 4 65 Regions Visited 26 Branch Regions 15 Pre-discovered Areas 5 | . . . 1 . . . . . . . . . . . . 1 . . . . . . 3 . . . Known Exits Taken 14 | . . . . . 1 . . 1 . . 1 . . . 1 1 1 1 1 1 1 1 1 1 1 . Unknown Exits Taken 8 | 1 1 1 1 1 . . 1 . 1 1 . . . . . . . . . . . . . . . . Scrap Searched 16 | . . 1 . 2 . . . . . 5 . . . . . 1 3 . . . 1 2 . 1 . . Spaces Dug 25 | . . . . . . . . . . . . . . . 14 . . . 6 1 . 4 . . . . Terrain Destroyed 462 | . 28 . . . . 247 23 . . . . . 8 . 16 44 34 . 6 1 . 4 . . 2 49 Melee 15 | . . . . . . . . . . . . . . . 4 . . . 6 1 . 4 . . . . Projectile 16 | . . . . . . . . . . . . . 1 . 12 . 1 . . . . . . . 2 . AOE 431 | . 28 . . . . 247 23 . . . . . 7 . . 44 33 . . . . . . . . 49 Terrain Rammed . | . . . . . . . . . . . . . . . . . . . . . . . . . . . Walls Destroyed . | . . . . . . . . . . . . . . . . . . . . . . . . . . . Machines Disabled . | . . . . . . . . . . . . . . . . . . . . . . . . . . . Actions | -11 -10 -10 -10 -9 -8 -8 -8 -8 -8 -8 -6 -6 -5 -5 -5 -5 -5 -5 -4 -4 -4 -4 -4 -3 -3 -3 --------- Run | Yrd Mat Min Exi Min Mat Gar Mat Sto Rec Scr Fac DSF Fac Was Fac Upp Upp War Pro Fac Upp Upp Zhi Pro Res Tes Total 11866 | 57 797 696 209 255 327 1221 257 267 287 717 599 68 745 181 622 433 361 347 619 763 370 435 174 455 113 491 Wait 413 | . 25 23 . 1 . 18 . 32 6 1 73 1 14 12 50 36 . . 4 17 . 5 . 86 9 . Move 10620 | 45 681 654 208 239 281 964 198 198 267 708 444 58 701 168 540 384 352 347 605 715 368 425 167 351 93 459 Hop 15 | . . . . . . . . . . . 5 1 2 . 3 . . . . . . . . . 1 3 Pick Up 106 | 6 21 4 1 6 14 21 8 . 4 2 4 . 2 . 1 3 2 . . 4 . . 1 1 . 1 Fast Attach 69 | 6 3 . . . 2 4 7 4 1 . 6 3 10 1 4 1 . . . 4 1 1 3 2 . 6 Attach 52 | . . . . 1 4 17 4 1 . . 3 . 1 . . 2 1 . 2 3 . . . 5 1 7 Detach 19 | . 1 . . . . . 1 . . . . . 2 . 2 2 . . 1 2 . . . 4 1 3 Swap 41 | . 4 1 . 2 2 18 6 1 1 2 . 1 1 . 1 . . . 1 . . . . . . . Drop 98 | . 18 3 . . 14 9 8 2 3 4 10 4 7 . 4 1 2 . . 6 . . 2 . . 1 Fire 297 | . 43 11 . 6 10 140 25 13 5 . 2 . 5 . 13 3 4 . . 4 . . . 3 7 3 Melee 28 | . . . . . . . . . . . . . . . 4 1 . . 6 8 1 4 1 3 . . Ram 1 | . . . . . . . . . . . . . . . . . . . . . . . . . 1 . Kick . | . . . . . . . . . . . . . . . . . . . . . . . . . . . Crush 1 | . 1 . . . . . . . . . . . . . . . . . . . . . . . . . Escape Stasis 90 | . . . . . . 14 . 16 . . 52 . . . . . . . . . . . . . . 8 Rewire 16 | . . . . . . 16 . . . . . . . . . . . . . . . . . . . . Trap . | . . . . . . . . . . . . . . . . . . . . . . . . . . . Miscellaneous . | . . . . . . . . . . . . . . . . . . . . . . . . . . . Route ------- -11/Scrapyard -10/Materials (discovered 4 exits: [*Mat x3] / *Min) -10/Mines (discovered 4 exits: [*Mat x2] / *Exi / [*Sub]) -10/Exiles -9/Mines (discovered 2 exits: *Mat x2) -8/Materials -8/Garrison (discovered 3 exits: *Mat x3) -8/Materials (discovered 2 exits: [*Fac] / *Sto) -8/Storage -8/Recycling -8/Scraptown -6/Factory (discovered 2 exits: DSF / DSF) -6/DSF -5/Factory -5/Waste -5/Factory -5/Upper Caves -5/Upper Caves (discovered 2 exits: *Fac / *War) -5/Warlord -4/Proximity Caves -4/Factory (discovered 3 exits: *Upp x2 / Arm) -4/Upper Caves -4/Upper Caves (discovered 2 exits: Res / *Zhi) -4/Zhirov -3/Proximity Caves -3/Research (discovered 2 exits: *Tes x2) -3/Testing History --------- Turn | Location | Event 9 | -11/Scrapyard | Discovered new exit (range 16) 83 | -11/Scrapyard | Entered Materials 316 | -10/Materials | Build established: Mutant 330 | -10/Materials | Central database locked down 384 | -10/Materials | Discovered new exit (range 9) 456 | -10/Materials | Discovered new exit (range 14) 667 | -10/Materials | Discovered new exit (range 16) 922 | -10/Materials | Discovered new exit (range 16) 1363 | -10/Materials | Entered Mines 1521 | -10/Mines | Received a Rocket Launcher from a helpful Derelict 1586 | -10/Mines | Discovered new exit (range 8) 1702 | -10/Mines | Discovered new exit (range 6) 1791 | -10/Mines | Assembled infested the area 1984 | -10/Mines | Discovered new exit (range 6) 2207 | -10/Mines | Found a damaged Exp. Sensor Array with a note attached 2214 | -10/Mines | Found Prototype Device 2711 | -10/Mines | Assisted by bots powering up and referring to "LRC-V3" 2778 | -10/Mines | Deemed a non-threat by the Exiles lab entrance 2781 | -10/Mines | Discovered new exit (range 5) 2813 | -10/Mines | Entered Exiles 2813 | -10/Exiles | Accompanied by 3 allies 2887 | -10/Exiles | Met 8R-AWN 2948 | -10/Exiles | Met EX-HEX 3044 | -10/Exiles | Met EX-BIN 3079 | -10/Exiles | Aligned with FarCom system 3082 | -10/Exiles | Given EX-Vault access code 3159 | -10/Exiles | Opened EX-Vault 3175 | -10/Exiles | Found Field Lobotomy Kit 3237 | -10/Exiles | Warned to stay clear of 0b10 Research branches 3333 | -10/Exiles | Met EX-DEC 3355 | -10/Exiles | Learned location of Zion (-7) 3445 | -10/Exiles | Discovered new exit (range 14) 3480 | -10/Exiles | Left Exiles lab with Field Lobotomy Kit 3480 | -10/Exiles | Entered Mines 3480 | -9/Mines | Accompanied by 3 allies 3532 | -9/Mines | Discovered new exit (range 7) 4037 | -9/Mines | Discovered new exit (range 16) 4130 | -9/Mines | Joined a pair of Derelicts in attacking an 0b10 outpost 4273 | -9/Mines | Entered Materials 4273 | -8/Materials | Accompanied by 5 allies 4273 | -8/Materials | Evolved 4 slots: Propulsion x1, Utility x3 4278 | -8/Materials | Led the pair of lost Derelicts to an unsafe place 4903 | -8/Materials | Garrison activated, responded to threat 4987 | -8/Materials | Identified exit to Garrison 4990 | -8/Materials | Entered Garrison 5014 | -8/Garrison | Lost 3 allies 5022 | -8/Garrison | Triggered checkpoint 5050 | -8/Garrison | Garrison Relay disabled 5156 | -8/Garrison | Triggered checkpoint 5404 | -8/Garrison | Garrison Relay disabled 5528 | -8/Garrison | Triggered checkpoint 5941 | -8/Garrison | Triggered checkpoint 6022 | -8/Garrison | Triggered checkpoint 6108 | -8/Garrison | Discovered new exit (range 15) 6260 | -8/Garrison | Build established: Scavenger-Mutant 6336 | -8/Garrison | Garrison Relay disabled 6424 | -8/Garrison | Triggered checkpoint 6452 | -8/Garrison | Triggered checkpoint 6514 | -8/Garrison | Triggered checkpoint 6521 | -8/Garrison | Core integrity fell below 50% 6782 | -8/Garrison | Triggered checkpoint 7012 | -8/Garrison | Discovered new exit (range 10) 7116 | -8/Garrison | Lost 4 parts (1n1u2w) 7138 | -8/Garrison | Build established: Mutant 7232 | -8/Garrison | Triggered checkpoint 7282 | -8/Garrison | Phase Generator disabled 7383 | -8/Garrison | Attempted to access garrison exit controls, blocked by remote lockdown 7717 | -8/Garrison | Lost 4 parts (2n2w) 7759 | -8/Garrison | Discovered new exit (range 11) 7812 | -8/Garrison | Entered Materials 7899 | -8/Materials | Core integrity fell below 20% 7947 | -8/Materials | Lost 4 parts (1p2n1w) 8212 | -8/Materials | First assault squad dispatched 8296 | -8/Materials | Lost 4 parts (1p1n2u) 8386 | -8/Materials | Discovered new exit (range 15) 8425 | -8/Materials | Discovered new exit (range 8) 8431 | -8/Materials | Entered Storage 8432 | -8/Storage | Identified exit to Recycling 8781 | -8/Storage | Build established: Scavenger-Mutant 8839 | -8/Storage | Used back door to open Recycling access 8844 | -8/Storage | Entered Recycling 9276 | -8/Recycling | Scanned before Scraplab entrance 9296 | -8/Recycling | Entered Scraplab 9308 | -8/Recycling | Discovered new exit (range 3) 9312 | -8/Recycling | Entered Scraptown 9315 | -8/Scraptown | System corruption cleaned by C-Scrubber 9505 | -8/Scraptown | Visited Comm Corps 9581 | -8/Scraptown | Visited Science Testing Area 9653 | -8/Scraptown | Visited Assassins FH 9669 | -8/Scraptown | Visited TADAMA 9701 | -8/Scraptown | Visited Bundlers 9774 | -8/Scraptown | Visited Cyclists 9849 | -8/Scraptown | Discovered new exit (range 13) 10007 | -8/Scraptown | Build established: Mutant 10255 | -8/Scraptown | Turned away by UFD registrar 10346 | -8/Scraptown | Entered Factory 10346 | -6/Factory | Evolved 4 slots: Propulsion x1, Utility x3 10425 | -6/Factory | Identified exit to DSF 10433 | -6/Factory | Found Prototype Launcher 10433 | -6/Factory | Identified Rocket Array 10614 | -6/Factory | Identified exit to DSF 10624 | -6/Factory | Entered DSF 10642 | -6/DSF | Additional patrols routed to DSF 10644 | -6/DSF | Discovered new exit (range 14) 10649 | -6/DSF | Identified exit to Factory 10650 | -6/DSF | Entered Factory 10650 | -5/Factory | Evolved 2 slots: Utility x2 10860 | -5/Factory | Discovered new exit (range 9) 10866 | -5/Factory | Identified exit to Extension 10909 | -5/Factory | Sucked down chute 10909 | -5/Factory | Entered Waste 10914 | -5/Waste | Build established: Hacker-Scout 10916 | -5/Waste | Spotted C-40 Crusher 10917 | -5/Waste | Spotted C-40 Crusher 10917 | -5/Waste | Spotted C-40 Crusher 10924 | -5/Waste | EMP discharged 10957 | -5/Waste | Spotted C-40 Crusher 10960 | -5/Waste | Spotted C-40 Crusher 10969 | -5/Waste | Spotted C-40 Crusher 10970 | -5/Waste | Discovered new exit (range 11) 10973 | -5/Waste | Identified exit to Factory 10973 | -5/Waste | Entered Factory 11232 | -5/Factory | Discovered new exit (range 15) 11238 | -5/Factory | Identified exit to Upper Caves 11272 | -5/Factory | Entered Upper Caves 11279 | -5/Upper Caves | Met a Warlord Commander 11280 | -5/Upper Caves | Learned location of Warlord (-5) 11281 | -5/Upper Caves | Warlord Commander delivered Encrypted Comm Array 11285 | -5/Upper Caves | Found Encrypted Comm Array 11401 | -5/Upper Caves | Attracted the attention of an 0b10 checkpoint 11446 | -5/Upper Caves | Discovered new exit (range 13) 11452 | -5/Upper Caves | Identified exit to Upper Caves 11468 | -5/Upper Caves | Entered another Upper Caves area 11480 | -5/Upper Caves | Discovered new exit (range 15) 11485 | -5/Upper Caves | Identified exit to Factory 11530 | -5/Upper Caves | Ambushed by wild Derelicts 11583 | -5/Upper Caves | Build established: Hacker-Mutant 11606 | -5/Upper Caves | Discovered new exit (range 14) 11611 | -5/Upper Caves | Identified exit to Warlord 11611 | -5/Upper Caves | Entered Warlord 11624 | -5/Warlord | System corruption cleaned by Quarantine Array 11633 | -5/Warlord | Lost 3 parts (2u1w) 11664 | -5/Warlord | Met Warlord 11669 | -5/Warlord | Warlord's base attacked by MAIN.C 11728 | -5/Warlord | Opened side exit 11735 | -5/Warlord | Discovered new exit (range 10) 11739 | -5/Warlord | Identified exit to Proximity Caves 11740 | -5/Warlord | Entered Proximity Caves 11756 | -4/Proximity Caves | Spotted B-86 Titan 11999 | -4/Proximity Caves | Attracted the attention of an 0b10 checkpoint 12003 | -4/Proximity Caves | Discovered exit to Factory (range 8) 12011 | -4/Proximity Caves | Entered Factory 12011 | -4/Factory | Evolved 2 slots: Utility x2 12187 | -4/Factory | Assimilated S-27 Virus with FLK Orb 12198 | -4/Factory | Core integrity fell below 50% 12198 | -4/Factory | Assimilated H-71 Marshal with FLK Orb 12219 | -4/Factory | Identified exit to Upper Caves 12219 | -4/Factory | Identified exit to Armory 12261 | -4/Factory | Search patrols dispatched 12263 | -4/Factory | Central database locked down 12465 | -4/Factory | Entered Upper Caves 12491 | -4/Upper Caves | Learned Research trap positions 12651 | -4/Upper Caves | Discovered new exit (range 7) 12652 | -4/Upper Caves | Attracted the attention of an 0b10 checkpoint 12653 | -4/Upper Caves | Identified exit to Upper Caves 12653 | -4/Upper Caves | Entered another Upper Caves area 12727 | -4/Upper Caves | Attracted the attention of an 0b10 checkpoint 12796 | -4/Upper Caves | Identified exit to Research 12872 | -4/Upper Caves | Discovered new exit (range 14) 12880 | -4/Upper Caves | Identified exit to Zhirov 12881 | -4/Upper Caves | Entered Zhirov 12881 | -4/Zhirov | Discovered new exit (range 3) 12891 | -4/Zhirov | Met Zhirov 12900 | -4/Zhirov | Learned location of Quarantine (-2) 12900 | -4/Zhirov | Learned location of Testing (-3) 12900 | -4/Zhirov | Learned location of Command (-1) 12911 | -4/Zhirov | Zhirov requested help retrieving the SGEMP Prototype 12920 | -4/Zhirov | Found Alien Artifact 12926 | -4/Zhirov | Found Alien Artifact 12926 | -4/Zhirov | Identified Integrated Dissipator 12926 | -4/Zhirov | Installed Integrated Dissipator, increased core heat dissipation (+20) 12973 | -4/Zhirov | Identified exit to Proximity Caves 12974 | -4/Zhirov | Entered Proximity Caves 12977 | -3/Proximity Caves | Core integrity fell below 20% 12992 | -3/Proximity Caves | Assimilated S-43 Plague with FLK Orb 13011 | -3/Proximity Caves | Assimilated P-80 Master with FLK Orb 13014 | -3/Proximity Caves | Lost 3 parts (2u1w) 13033 | -3/Proximity Caves | Spotter reported a threat 13096 | -3/Proximity Caves | Identified Transdimensional Reconstructor 13096 | -3/Proximity Caves | Warped through subspace 13096 | -3/Proximity Caves | Discovered exit to Research (range 6) 13211 | -3/Proximity Caves | Found Alien Artifact 13233 | -3/Proximity Caves | Entered Research 13233 | -3/Research | Evolved 2 slots: Utility x2 13234 | -3/Research | Identified exit to Testing 13235 | -3/Research | Loaded intel: 72 trap records 13291 | -3/Research | Discovered exit to Testing (range 11) 13306 | -3/Research | Entered Testing 13307 | -3/Testing | Maximum security lockdown engaged 13408 | -3/Testing | Identified Dimensional Node Initializer 13408 | -3/Testing | Initialized slip node 13423 | -3/Testing | Spotted PY-O8Y2M4XF4F 13431 | -3/Testing | Assimilated Y-72 Warden with FLK Orb 13438 | -3/Testing | Spotted Striker 13457 | -3/Testing | Spotted Striker 13473 | -3/Testing | Found Prototype Launcher 13473 | -3/Testing | Identified Adv. Micro-nuke Launcher 13474 | -3/Testing | Core integrity fell below 50% 13477 | -3/Testing | System corruption reached 10% 13507 | -3/Testing | Lost 8 parts (2p3n3u) 13519 | -3/Testing | Core integrity fell below 20% 13519 | -3/Testing | Scanned by Researcher 13524 | -3/Testing | Spotted Investigator 13524 | -3/Testing | Garrison activated, responded to threat 13529 | -3/Testing | Destroyed by G-73 Enforcer with Phase Gun Last Messages --------------- 100. 13528_ Stasis bubble strength at 156. 13528_ G-67 Veteran stasis bubble strength at 105. 13529_ M-36 Artificer stasis bubble strength at 100. 13529_ E-15 Imp stasis bubble strength at 175. 13529_ G-73 Enforcer stasis bubble strength at 85. 13529_ B-74 Champion stasis bubble strength at 170. 13529_ Investigator stasis bubble strength at 191. 13529_ G-73 Enforcer stasis bubble strength at 85. 13529_ L-61 Swordsman stasis bubble strength at 95. 13529_ I-47 Archangel stasis bubble strength at 90. 13529_ Stasis bubble strength at 150. Map ----- +----------------------------------------------------+ | ????# # """" #??????????????????????????? | | ????# # """ #??????????????????????????? | | ????# # """" #??????????????????????????? | | ????# # " #??????????????????????????? | | ????# # #??????????????????????????? | | ????# #############???????????????????????????? | | ????# #???????????????????????????????????????? | | ????# #####???????????????????????????????????? | | ????# ! # #???????????????????????????????????? | | ????# *%=# #???????????????????????????????????? | | ##### =%# ####????????????????????????????????? | | #????????????????????????????????? | | ## #?????????????? ???????????????? | | ?# ########??????? #?????????????? | | ?# #?????? Y #?????????????? | | ?#+###+##### " T#??Y??? ! #?????????????? | | ?# #"% ###""""#????? #?????????????? | | ?#] ! #w"" #?????????YYY #?????????????? | | ## + " "#???????????? #?????????????? | | + # "%#??????????? #?????????????? | | ## """ """ # "#??????????? #?????????????? | | ?# """ R" # #????????### #?????????????? | | ?# """ """ # #??????### g #+#?????????????? | | ?# # #?????## g i #?????????????? | | ############ ####### gcg #?????????????? | | pppKelg@ bggm +?????????????? | | ####### g gg #?????????????? | | #?????# ###?????????????? | | #?????## # #???????????????? | | #############+#############" #???????????????? | | # " #???""" #???????????????? | | "" # """""""" #???" "#???????????????? | | "" # " " #???#""""##???????????????? | | T" # #?????????????????????????? | | "" # """ #?????????????????????????? | | "" # """"" "?? #?????????????????????????? | | # """"" "?? #?????????????????????????? | | # ?? #?????????????????????????? | | ##########?#######???###?????????????????????????? | | | | | | | | | | | | | | | | | | | | | | | +----------------------------------------------------+ Best States ------------- Heat Dissipation 66 Energy Generation 19 Energy Capacity 265 Matter Stores 300 Matter Capacity 300 Sight Range 16 Terrain Scan Range 20 Terrain Scan Density 210 Armor Coverage 375 Utility Shielding 33 Evasion (%) 74 Targeting Accuracy 14 Melee Accuracy 22 Recoil Reduction 3 Offensive Hacking 35 Defensive Hacking 26 Item Schematics ----------------- Cloaking Device | -5/Factory | Hacked Assault Drone Bay | -4/Zhirov | Free Exp. Heat Sink | -4/Zhirov | Free Exp. Optical Array | -4/Zhirov | Free Imp. Arc Thrower | -4/Zhirov | Free Robot Schematics ------------------ None Fabricated ------------ Nothing Alien Tech Used ----------------- Integrated Dissipator Transdimensional Reconstructor Dimensional Node Initializer Achievements -------------- None Challenges ------------ None Game ------ Seed AssaultAlloyKatana Manual? 0 Play Time 01:21:49 Cumulative 129.9 hours Start 2024.11.26 @ 10:52:13 End 2024.11.26 @ 12:19:45 Sessions 1 Manual Loads 0 Difficulty Rogue Special Mode None Game No. 153 Rogue 153 Adventurer 0 Explorer 0 Win Type - Total 2 Types 2/0/0/0/0/0/0/0/0 Lore% 66 Gallery% 56 Achievement% 48 Wizard Run 0 Options --------- Layout 1 ASCII 0 Keyboard 1 Movement Numpad Keybinds 0 Fullscreen 1 Font 24/Smallcaps Map View 50x35 Zoom Use 0% Tactical HUD 1 Map Filters NONE Filters NONE Steam 1 RUN: 00c7f098-ea5e-4f15-84c6-e2d565a1c8ce